Cogmind - Beta 15 @@@ ROGUE MODE // 2025.08.05 @ 20:56:43 Player: GayPredator Result: Destroyed by UM-6AL(R) with Subdweller Laser Performance ------------- Evolutions (0) 0 Regions Visited (3) 600 Robots Destroyed (34) 170 Value Destroyed (808) 808 Prototype IDs (0) 0 Alien Tech Used (0) 0 Bonus (0) 0 TOTAL SCORE: 1578 Bonus ------- None Cogmind --------- Core Integrity 0/250 Matter 265/300 Energy 250/250 System Corruption 1% Temperature Cool (6) Movement Walking (190) Ox1 Location -10/Subcaves Parts ------- > --- POWER (1) -------- Ion Engine > --- PROPULSION (2) --- Aluminum Leg > --- UTILITY (2) ------ Medium Storage Unit Machine Analyzer > --- WEAPON (2) ------- Assault Rifle > --- INVENTORY (10) --- Light Nuclear Core Light Treads Improved Heat Sink Large Matter Pod (150) Structural Scanner Sensor Array Signal Interpreter Tractor Beam Small Laser Mining Claw Peak State ------------ > --- POWER ------------ Ion Engine > --- PROPULSION ------- Light Treads Light Treads > --- UTILITY ---------- Medium Storage Unit Machine Analyzer > --- WEAPON ----------- Assault Rifle Rocket Launcher > --- INVENTORY -------- Light Ion Engine Aluminum Leg Aluminum Leg Improved Heat Sink Structural Scanner Tractor Beam Small Laser Small Laser Mining Claw [Rating: 11] Favorites ----------- Power Light Ion Engine Engine Light Ion Engine Propulsion Aluminum Leg Treads Light Treads Leg Aluminum Leg Utility Medium Storage Unit Device Tractor Beam Storage Medium Storage Unit Processor Machine Analyzer Protection Propulsion Shielding Weapon Small Laser Energy Gun Small Laser Ballistic Gun Assault Rifle Launcher Grenade Launcher Slashing Weapon Mining Claw Build | -11 -10 -10 -10 ------- Run | Yrd Mat Min Sub Slots Evolved . | . . . . Power . | . . . . Propulsion . | . . . . Utility . | . . . . Weapon . | . . . . Parts Attached 27 | 7 16 4 . Power 7 | 1 5 1 . Engine 7 | 1 5 1 . Core . | . . . . Reactor . | . . . . Propulsion 7 | 2 3 2 . Treads 3 | 2 1 . . Leg 4 | . 2 2 . Wheel . | . . . . Hover . | . . . . Flight . | . . . . Utility 6 | 2 4 . . Device 2 | 1 1 . . Storage 2 | 1 1 . . Processor 1 | . 1 . . Hackware . | . . . . Protection 1 | . 1 . . Artifact . | . . . . Weapon 7 | 2 4 1 . Energy Gun 2 | 1 1 . . Energy Cannon . | . . . . Ballistic Gun 2 | 1 1 . . Ballistic Cannon . | . . . . Launcher 2 | . 1 1 . Special Weapon . | . . . . Impact Weapon . | . . . . Slashing Weapon 1 | . 1 . . Piercing Weapon . | . . . . Special Melee Weapon . | . . . . Unidentified Prototypes . | . . . . Parts Lost 7 | . 4 1 2 Power 2 | . 1 1 . Propulsion 2 | . 1 . 1 Utility . | . . . . Weapon 3 | . 2 . 1 Highest Loss Streak 3 | . 3 1 2 To Critical Strikes . | . . . . Average Backups 7 | 2 7 9 10 Power . | . . . 1 Propulsion 1 | 1 1 1 1 Utility 3 | . 3 6 6 Weapon 1 | . 1 2 2 Tool/Special . | . . . . Unused Backups 7 | . 1 . 6 Power 1 | . . . 1 Propulsion 1 | . . . 1 Utility 5 | . 1 . 4 Weapon . | . . . . Tool/Special . | . . . . Average Slot Usage (%) 99 | . 99 100 97 Engine 13 | . 13 14 14 Treads 12 | . 15 . . Leg 15 | . 12 28 26 Device 2 | . 3 . . Storage 14 | . 14 14 14 Processor 9 | . 7 14 14 Protection 2 | . 3 . . Energy Gun 13 | . 15 8 . Ballistic Gun 12 | . 11 14 14 Launcher 1 | . . 5 12 Peak Build Rating 11 | 7 11 10 10 Average Rating 8 | 4 8 9 9 On Entrance 6 | . 7 10 10 Naked Turns . | . . . . Heaviest Build 20 | 12 19 20 20 Greatest Support 40 | 40 40 20 20 Greatest Overweight (x) . | . . . . Average Overweight (x) . | . . . . Largest Inventory Capacity 10 | 8 10 10 10 Average Capacity 9 | 7 9 10 10 Most Carried 10 | 5 10 10 10 Average Carried 7 | 3 7 9 10 Final Capacity 10 | 8 10 10 10 Final Carried 10 | 4 10 10 10 Class Distribution -------------------- 100% | Mutant Dominant Class ---------------- Mutant | -10/Materials Mutant | -10/Mines Mutant | -10/Subcaves Resources | -11 -10 -10 -10 ----------- Run | Yrd Mat Min Sub Matter Collected 887 | 273 435 179 . Remotely 137 | 87 50 . . Salvage Created 1060 | 56 775 169 60 Parts 84 | 3 64 12 5 Haulers Intercepted 1 | . 1 . . Recyclers Shooed 2 | . 2 . . Parts Field Recycled . | . . . . Retrieved Matter . | . . . . Parts Self-Destructed . | . . . . Prevented . | . . . . Kills | -11 -10 -10 -10 ------- Run | Yrd Mat Min Sub Combat Hostiles Destroyed 26 | . 20 4 2 Guns 25 | . 20 4 1 AOE 1 | . . . 1 Classes Destroyed 9 | 1 8 . . Worker 2 | . 2 . . Hauler 1 | . 1 . . Recycler 2 | 1 1 . . Mechanic 1 | . 1 . . Operator 1 | . 1 . . Watcher 1 | . 1 . . Swarmer 9 | . 9 . . Grunt 12 | . 8 4 . Subdweller 5 | . 3 . 2 Best Kill Streak 5 | 1 5 2 2 Combat Bots Only 5 | . 5 2 2 Max Kills in Single Turn 1 | 1 1 1 1 Gunslinging . | . . . . Exploded 1 | . . . 1 Melee . | . . . . Uniques/NPCs Destroyed . | . . . . Combat | -11 -10 -10 -10 -------- Run | Yrd Mat Min Sub Hostile Shots Fired 138 | . 104 21 13 Missed 44 | . 36 4 4 Hits 94 | . 68 17 9 Projectile 94 | . 68 17 9 AOE 4 | . . 2 2 Critical Strikes 2 | . 1 1 . Actively Blocked 1 | . 1 . . Damage Taken 1444 | . 907 247 290 Core 253 | . 139 40 74 Absorbed by Shields . | . . . . Redirected to Shielding 41 | . 41 . . Core Remaining (%) 100 | 100 . . . Volleys Fired 104 | 1 88 9 6 Largest 2 | 2 2 2 2 Hottest 80 | 60 80 60 50 Shots Fired 200 | 2 172 18 8 Gun 197 | 2 172 18 5 Cannon . | . . . . Launcher 3 | . . . 3 Special . | . . . . Kinetic 91 | 1 76 9 5 Thermal 106 | 1 96 9 . Explosive 3 | . . . 3 Electromagnetic . | . . . . Robot Hit Streak 19 | 2 13 11 19 Robot Miss Streak 5 | . 5 2 . Penetration Max . | . . . . Secondary Targets 3 | . 3 . . Max Gunslinging Chain 1 | . 1 . . Shots Hit Robots 135 | 2 111 14 8 Core Hits 61 | 2 47 9 3 Critical Kills 1 | . . 1 . Critical Parts Destroyed . | . . . . Critical Strikes 1 | . . 1 . Destroy 1 | . . 1 . Melee Attacks 1 | . 1 . . Impact . | . . . . Slashing 1 | . 1 . . Piercing . | . . . . Sneak Attacks . | . . . . Combat Hostiles . | . . . . Follow-up Attacks . | . . . . Damage Inflicted 1759 | 22 1307 170 260 Guns 1561 | 22 1301 170 68 Cannons . | . . . . Explosions 192 | . . . 192 Melee . | . . . . Ramming 6 | . 6 . . Kinetic 757 | 10 598 81 68 Thermal 804 | 12 703 89 . Explosive 192 | . . . 192 Electromagnetic . | . . . . Impact . | . . . . Slashing . | . . . . Piercing . | . . . . Highest Corruption 1 | . 1 1 1 Average Corruption 1 | . 1 1 1 Corruption Purged . | . . . . Corruption Blocked . | . . . . Effects 1 | . . . 1 Heat Flow Errors 1 | . . . 1 Overload Shots . | . . . . Overflow Damage . | . . . . Projectiles . | . . . . Explosions . | . . . . Melee . | . . . . Knockbacks . | . . . . Impact . | . . . . Kinetic . | . . . . Secondary . | . . . . Self-Inflicted Damage 10 | . . . 10 Shots 1 | . . . 1 Rammed 2 | . 2 . . Targets Rammed 3 | . 3 . . Kicked . | . . . . Crushed 1 | . 1 . . Highest Temperature 154 | . 154 57 98 Average Temperature 43 | . 46 25 49 Received Heat Transfer 390 | . 219 141 30 Siege Activations . | . . . . Martial Activations . | . . . . Shielding Activations . | . . . . Robots Disrupted . | . . . . Combat Hostiles . | . . . . Robots Corrupted . | . . . . Combat Hostiles . | . . . . Parts Fried . | . . . . Impact Corruptions . | . . . . Robots Melted . | . . . . Combat Hostiles . | . . . . Parts Melted . | . . . . Heat Transferred 1825 | 25 1600 200 . Parts Sabotaged . | . . . . Parts Stolen . | . . . . Parts Stripped . | . . . . Power Chain Reactions . | . . . . Alert | -11 -10 -10 -10 ------- Run | Yrd Mat Min Sub Maximum Alert Level 1 | . 1 . . Low Security (%) 97 | 100 96 100 . Level 1 2 | . 3 . . Level 2 . | . . . . Level 3 . | . . . . Level 4 . | . . . . Level 5 . | . . . . High Security . | . . . . Max Security . | . . . . Peak Influence 205 | 5 205 73 . Initial 33 | . . 33 . Average 82 | 1 96 40 . Influence Increases 628 | 5 523 100 . Destroy 0b10 Robot/C 420 | . 340 80 . Destroy 0b10 Robot/NC 40 | 5 35 . . Destroy Leader 94 | . 74 20 . Successful Hack 43 | . 43 . . Disable Machine 15 | . 15 . . Destroy Structure 1 | . 1 . . Lose Combat Pursuer 15 | . 15 . . Influence Decreases 628 | 5 436 184 3 Entered New Map 57 | . . 54 3 Time Decay 521 | 5 396 120 . Lost Part 50 | . 40 10 . Squads Dispatched 4 | . 4 . . Investigation 2 | . 2 . . Extermination . | . . . . Reinforcement 2 | . 2 . . Assault . | . . . . Garrison . | . . . . Intercept . | . . . . Searches Triggered . | . . . . Construction Impeded . | . . . . Haulers Reinforced . | . . . . Active Scanning Responses . | . . . . Cargo Convoy Interrupts . | . . . . Stealth | -11 -10 -10 -10 --------- Run | Yrd Mat Min Sub Distress Signals 2 | . 2 . . Communications Jammed . | . . . . Distress Signals . | . . . . Times Spotted 43 | . 34 6 3 Peak Tracking Total 4 | . 4 2 3 Tactical Retreats 1 | . 1 . . Traps | -11 -10 -10 -10 ------- Run | Yrd Mat Min Sub Traps Triggered . | . . . . Indirectly . | . . . . Trap Hack Attempts . | . . . . Triggered . | . . . . Disarmed . | . . . . Reprogrammed . | . . . . Reused . | . . . . Traps Extracted . | . . . . Installed . | . . . . Triggered . | . . . . Machines | -11 -10 -10 -10 ---------- Run | Yrd Mat Min Sub Machines Disabled 1 | . 1 . . Max in Single Turn 1 | . 1 . . Machines Repaired . | . . . . Machines Dismantled . | . . . . Machines Sabotaged . | . . . . Overloaded Fab Kills . | . . . . Hacking | -11 -10 -10 -10 --------- Run | Yrd Mat Min Sub Machines Accessed 7 | . 7 . . Terminals 6 | . 6 . . Fabricators . | . . . . Repair Stations . | . . . . Recycling Units 1 | . 1 . . Scanalyzers . | . . . . Garrison Access . | . . . . Total Hacks 21 | . 21 . . Successful 12 | . 12 . . Failed 9 | . 9 . . Catastrophic 1 | . 1 . . Database Lockouts . | . . . . Manual 14 | . 14 . . Terminals 17 | . 17 . . Fabricators . | . . . . Repair Stations . | . . . . Recycling Units 4 | . 4 . . Scanalyzers . | . . . . Garrison Access . | . . . . Terminal Hacks 3 | . 3 . . Branch Access Points 1 | . 1 . . Locate Traps 1 | . 1 . . Zone Layout 1 | . 1 . . Fabricator Hacks . | . . . . Repair Station Hacks . | . . . . Recycling Unit Hacks 2 | . 2 . . Report Inventory 1 | . 1 . . Retrieve Components 1 | . 1 . . Scanalyzer . | . . . . Garrison Access Hacks . | . . . . Unauthorized Hacks 7 | . 7 . . Terminals 7 | . 7 . . Botnet 2 | . 2 . . Skim 5 | . 5 . . Fabricators . | . . . . Repair Stations . | . . . . Recycling Units . | . . . . Scanalyzers . | . . . . Garrison Access . | . . . . Data Cores Recovered . | . . . . Used . | . . . . Hacking Detections 5 | . 5 . . Full Trace Events 1 | . 1 . . Feedback Events 1 | . 1 . . Corruption 1 | . 1 . . Feedback Blocked . | . . . . Robot Schematics Acquired . | . . . . Robots Built . | . . . . Authchips . | . . . . Time . | . . . . Total Robot Build Rating . | . . . . Part Schematics Acquired . | . . . . Parts Built . | . . . . Authchips . | . . . . Time . | . . . . Total Part Build Rating . | . . . . Parts Repaired . | . . . . Time . | . . . . Parts Recycled . | . . . . Recycled Matter . | . . . . Retrieved Matter . | . . . . Retrieved Components 10 | . 10 . . Parts Scanalyzed . | . . . . Part Schematics Acquired . | . . . . Parts Damaged . | . . . . Bothacking | -11 -10 -10 -10 ------------ Run | Yrd Mat Min Sub Used RIF Installer . | . . . . Robots Hacked . | . . . . Non-combat . | . . . . Combat . | . . . . Robot Hacks Applied . | . . . . Relay Couplers Released . | . . . . Fabnet Peak Effective % . | . . . . Robots Rewired . | . . . . Allies Hacked . | . . . . Hacks Repelled . | . . . . Allies | -11 -10 -10 -10 -------- Run | Yrd Mat Min Sub Total Allies . | . . . . Largest Group . | . . . . Highest-Rated Group . | . . . . Highest-Rated Ally . | . . . . Total Orders . | . . . . Ally Attacks . | . . . . Total Damage . | . . . . Kills . | . . . . Allies Corrupted . | . . . . Allies Melted . | . . . . Intel | -11 -10 -10 -10 ------- Run | Yrd Mat Min Sub Active Infowar (turns) 1072 | . 740 241 91 Structural 76 | . 76 . . Machine Analysis 996 | . 664 241 91 Robot Analysis Total . | . . . . Derelict Logs Recovered . | . . . . Drone Launches . | . . . . Drone Recoveries . | . . . . Exploration | -11 -10 -10 -10 ------------- Run | Yrd Mat Min Sub Turns Passed 1621 | 75 1214 241 91 Spaces Moved 849 | 37 600 147 65 Core 2 | 2 . . . Treads 289 | 35 254 . . Legs 558 | . 346 147 65 Wheels . | . . . . Hover . | . . . . Flight . | . . . . Fastest Speed 50 | 50 120 120 120 Average Speed 133 | 154 136 120 120 Slowest Speed 160 | 160 160 120 120 Overloaded Moves . | . . . . Propulsion Burnouts . | . . . . Robots Hopped . | . . . . Potential Cave-ins . | . . . . Cave-ins Triggered . | . . . . Exploration Rate (%) 36 | 4 91 38 11 Regions Visited 3 Branch Regions 2 Pre-discovered Areas 1 | . 1 . . Known Exits Taken 2 | . 1 1 . Unknown Exits Taken 1 | 1 . . . Scrap Searched 1 | . . 1 . Spaces Dug . | . . . . Terrain Destroyed 10 | . . . 10 Melee . | . . . . Projectile . | . . . . AOE 10 | . . . 10 Terrain Rammed . | . . . . Walls Destroyed . | . . . . Machines Disabled . | . . . . Actions | -11 -10 -10 -10 --------- Run | Yrd Mat Min Sub Total 1130 | 50 817 192 71 Wait 113 | 1 85 27 . Move 846 | 36 599 146 65 Hop . | . . . . Pick Up 17 | 5 11 1 . Fast Attach 14 | 6 6 2 . Attach 9 | 1 7 1 . Detach 3 | . 3 . . Swap 8 | . 5 3 . Drop 12 | . 9 3 . Fire 104 | 1 88 9 6 Melee 1 | . 1 . . Ram . | . . . . Kick . | . . . . Crush 3 | . 3 . . Escape Stasis . | . . . . Rewire . | . . . . Trap . | . . . . Miscellaneous . | . . . . Route ------- -11/Scrapyard -10/Materials (discovered 4 exits: *Mat x2 / *Min / Sub) -10/Mines (discovered 3 exits: *Mat x2 / *Sub) -10/Subcaves (discovered 2 exits: Mat / Rec) History --------- Turn | Location | Event 31 | -11/Scrapyard | Discovered new exit (range 14) 76 | -11/Scrapyard | Entered Materials 302 | -10/Materials | Build established: Mutant 428 | -10/Materials | Discovered new exit (range 16) 576 | -10/Materials | Derelicts attacked the area 787 | -10/Materials | Lost 3 parts (1n2w) 787 | -10/Materials | Core integrity fell below 50% 988 | -10/Materials | Discovered new exit (range 4) 1164 | -10/Materials | Discovered new exit (range 9) 1176 | -10/Materials | Identified exit to Mines 1216 | -10/Materials | Learned location of Mines (-10) 1268 | -10/Materials | Learned 2 Mines zone layouts 1281 | -10/Materials | Learned location of 2 exits from Subcaves 1282 | -10/Materials | Identified exit to Subcaves 1283 | -10/Materials | Learned 2 Storage zone layouts 1284 | -10/Materials | Loaded intel: 18 trap records 1290 | -10/Materials | Entered Mines 1291 | -10/Mines | Identified exit to Materials 1435 | -10/Mines | Assembled infested the area 1522 | -10/Mines | Discovered exit to Subcaves (range 7) 1531 | -10/Mines | Entered Subcaves 1532 | -10/Subcaves | Identified exit to Materials 1532 | -10/Subcaves | Identified exit to Recycling 1609 | -10/Subcaves | Core integrity fell below 20% 1610 | -10/Subcaves | Ambushed by Subdweller buried in earth 1622 | -10/Subcaves | Destroyed by UM-6AL(R) with Subdweller Laser Last Messages --------------- 01510_ Found 34 Matter. 01511_ Acquired 10 matter. 01511_ The unstable cave ceiling collapses. 01522_ EXIT=FOUND: SUBCAVES 01528_ D-53 Grenadier destroyed. LOCATION=SUBCAVES AMBIENT_HEAT=-10 GOAL=ESCAPE Loading 2 Subcaves exits... 01584_ X1-3H3(O) collects matter. 01608_ System corrupted: Heat flow error (+136). 01610_ I8-4IT(R): "NOSTUCKSUB!" 01610_ Aluminum Leg destroyed. 01611_ UM-6AL(R): "SLEEPOVER!" 01611_ O2-GLJ(R) destroyed. 01613_ QL-S1F(z): "She is not going to be happy we haven't found any suitable candidates yet." 01615_ Grenade Launcher destroyed. 01619_ Subatomizers dissect the Sub. Monowheel. 01619_ I8-4IT(R) destroyed. Map ----- +----------------------------------------------------+ | ????????????# #####????????????????????????? | | ????????????### #????????????????????????????? | | ??????????????## ##???????????????????????????? | | ???????????????## ##??????????????????????????? | | ????????????????# ##?????????????????????????? | | ????????????????## #?????????????????????????? | | ?????????????????### #?????????????????????????? | | ??????????????###??## ##????????????????????????? | | ??????????????# #?# #????????????????????????? | | ?????????????##% ### ##????????????????????????? | | ?????????????# #????????????????????????? | | ????????????## %###???????????????????????? | | ???????????## #???????????????????????? | | ???????????# ##???????????????????????? | | ???????????# ### #????????????????????????? | | ???????????# #?## #???????#?#??????????????? | | ???????????## #?# #??????# %???????????????? | | ????????????# ## ##??##?& ????????????????? | | ????????????# ## #??# ##<&##???????????????? | | ????????????# ###### # $#???????????????? | | ????????????## ## # [ & ##??????????????? | | ?????????????### !%! %= #??????????????? | | ???????????????# / & ######?????????? | | ???????????????# ???????? | | ???????????????### ; % ???????? | | ????????????????# #; @ #???????????? | | ????????????????# # R % %#???????????? | | ????????????????## ; ;; % #???????????? | | ?????????????????## ### #; ## %#??????????? | | ??????????????????# ??##?#;; #?? ?????????? | | ??????????????????# ??????## #??? % ?????????? | | ?????????????????? ???????? ##????###?????????? | | ?????????????????? ????????? #?????????????????? | | ?????????????????? ?????????? ?????????????????? | | ?????????????????? ?????????? ????????????????? | | ??????????????????? ??????????? ???????????????? | | ??????????????????? ???????????? ???????????????? | | ?????????????????????????????????? ??????????????? | | ?????????????????????????????????????????????????? | | ?????????????????????????????????????????????????? | | ?????????????????????????????????????????????????? | | ?????????????????????????????????????????????????? | | ?????????????????????????????????????????????????? | | ?????????????????????????????????????????????????? | | ?????????????????????????????????????????????????? | | ?????????????????????????????????????????????????? | | ?????????????????????????????????????????????????? | | ?????????????????????????????????????????????????? | | ?????????????????????????????????????????????????? | | ?????????????????????????????????????????????????? | +----------------------------------------------------+ Best States ------------- Heat Dissipation 25 Energy Generation 15 Energy Capacity 250 Matter Stores 300 Matter Capacity 300 Sight Range 16 Terrain Scan Density 10 Propulsion Shielding 33 Evasion (%) 55 Recoil Reduction 2 Item Schematics ----------------- None Robot Schematics ------------------ None Fabricated ------------ Nothing Repaired ---------- Nothing Alien Tech Used ----------------- None Achievements -------------- None Challenges ------------ None Game ------ Seed DerelictJammingMediator Manual? 0 Play Time 00:14:52 Cumulative 165.7 hours Start 2025.08.05 @ 20:42:37 End 2025.08.05 @ 20:56:43 Sessions 1 Manual Loads 0 Difficulty Rogue Special Mode None Game No. 145 Rogue 106 Adventurer 32 Explorer 7 Win Type - Total 1 Types 1/0/0/0/0/0/0/0/0/0 Lore% 40 Gallery% 61 Achievement% 53 Wizard Run 0 Options --------- Layout 1 ASCII 0 Keyboard 0 Movement Numpad Keybinds 0 Fullscreen 1 Font 24/Smallcaps Map View 50x35 Zoom Use 0% Tactical HUD 1 Map Filters NONE Filters NONE Steam 1 RUN: 09919cfc-3438-4300-a406-58f2c5f2fb3a